Cogmind - Beta 10.2 @@@ ROGUE MODE // 2021.05.22 @ 11:09:04 Player: sorro Result: Destroyed by Y-45 Defender with Beam Rifle Performance ------------- Evolutions (1) 500 Regions Visited (3) 600 Robots Destroyed (17) 85 Value Destroyed (337) 337 Prototype IDs (3) 60 Alien Tech Used (0) 0 Bonus (0) 0 TOTAL SCORE: 1582 Bonus ------- None Cogmind --------- Core Integrity 0/400 Matter 387/400 Energy 73/100 System Corruption 0% Temperature Cool (9) Movement Core (650) Ox12 Location -9/Materials Parts ------- > --- POWER (2) -------- (None) > --- PROPULSION (2) --- (None) > --- UTILITY (3) ------ High-capacity Storage Unit Medium Matter Pod Improved Trap Extractor > --- WEAPON (2) ------- (None) > --- INVENTORY (12) --- Heat Sink Disposable Heat Sink Disposable Heat Sink Ion Cannon Improved Datajack Welding Torch Axe Peak State ------------ > --- POWER ------------ Ion Engine > --- PROPULSION ------- Aluminum Leg Aluminum Leg > --- UTILITY ---------- High-capacity Storage Unit Improved Trap Extractor > --- WEAPON ----------- Great Maul Axe > --- INVENTORY -------- Heat Sink Disposable Heat Sink Disposable Heat Sink High-capacity Storage Unit Medium Matter Pod Particle Cannon Light Cannon Grenade Launcher Welding Torch Hammer [Rating: 15] Favorites ----------- Power Ion Engine Engine Ion Engine Propulsion Aluminum Leg Leg Aluminum Leg Utility High-capacity Storage Unit Device Improved Trap Extractor Storage High-capacity Storage Unit Processor Improved Signal Interpreter Weapon Particle Cannon Energy Gun Small Laser Energy Cannon Particle Cannon Ballistic Gun Light Assault Rifle Launcher Grenade Launcher Special Weapon Welding Torch Impact Weapon Great Maul Slashing Weapon Axe Build | -11 -10 -10 -9 ------- Run | Scr Mat Min Mat Slots Evolved 2 | . . . 2 Power 1 | . . . 1 Propulsion . | . . . . Utility 1 | . . . 1 Weapon . | . . . . Parts Attached 24 | 6 7 9 2 Power 1 | 1 . . . Engine 1 | 1 . . . Core . | . . . . Reactor . | . . . . Propulsion 3 | 2 . 1 . Treads . | . . . . Leg 3 | 2 . 1 . Wheel . | . . . . Hover . | . . . . Flight . | . . . . Utility 8 | 1 5 1 1 Device 4 | . 3 1 . Storage 3 | 1 1 . 1 Processor 1 | . 1 . . Hackware . | . . . . Protection . | . . . . Artifact . | . . . . Weapon 12 | 2 2 7 1 Energy Gun 3 | 1 1 . 1 Energy Cannon 2 | . 1 1 . Ballistic Gun 2 | 1 . 1 . Ballistic Cannon . | . . . . Launcher 1 | . . 1 . Special Weapon 2 | . . 2 . Impact Weapon 1 | . . 1 . Slashing Weapon 1 | . . 1 . Piercing Weapon . | . . . . Special Melee Weapon . | . . . . Unidentified Prototypes . | . . . . Parts Lost 6 | . 1 1 4 Power 1 | . . . 1 Propulsion 2 | . . 1 1 Utility . | . . . . Weapon 3 | . 1 . 2 Highest Loss Streak 3 | . 1 1 3 Average Slot Usage (%) 92 | . 94 96 68 Engine 13 | . 14 14 8 Leg 23 | . 28 24 8 Device 11 | . 6 14 11 Storage 14 | . 11 14 22 Processor 1 | . 5 . . Energy Gun 1 | . 6 . 1 Energy Cannon 11 | . 8 13 6 Ballistic Gun 2 | . 12 . . Launcher 2 | . . 4 . Special Weapon 1 | . . 2 . Impact Weapon 5 | . . 7 10 Naked Turns . | . . . . Heaviest Build 52 | 11 43 50 52 Greatest Support 20 | 3 20 20 10 Greatest Overweight (x) 13 | 3 3 4 13 Average Overweight (x) 2 | 2 . 2 5 Largest Inventory Capacity 12 | 6 12 12 12 Average Capacity 10 | 5 8 12 12 Most Carried 11 | 3 7 11 7 Average Carried 5 | . 3 6 6 Final Capacity 12 | 6 12 12 12 Final Carried 7 | . 7 7 7 Class Distribution -------------------- 100% | Mutant Dominant Class ---------------- Mutant | -10/Materials Mutant | -10/Mines Mutant | -9/Materials Resources | -11 -10 -10 -9 ----------- Run | Scr Mat Min Mat Matter Collected 537 | 234 110 162 31 Remotely . | . . . . Salvage Created 399 | . 272 127 . Parts 28 | . 21 7 . Haulers Intercepted . | . . . . Recyclers Shooed . | . . . . Parts Field Recycled . | . . . . Retrieved Matter . | . . . . Parts Self-Destructed . | . . . . Prevented . | . . . . Kills | -11 -10 -10 -9 ------- Run | Scr Mat Min Mat Combat Hostiles Destroyed 15 | . 7 8 . Guns 5 | . 5 . . Cannons 5 | . 2 3 . AOE 3 | . . 3 . Classes Destroyed 4 | . 4 . . Worker 1 | . 1 . . Watcher 1 | . 1 . . Swarmer 9 | . 3 6 . Grunt 6 | . 4 2 . Best Kill Streak 4 | . 4 3 . Combat Bots Only 3 | . 2 3 . Max Kills in Single Turn 2 | . 1 2 . Gunslinging . | . . . . Exploded 2 | . . 2 . Melee . | . . . . Uniques/NPCs Destroyed . | . . . . Combat | -11 -10 -10 -9 -------- Run | Scr Mat Min Mat Damage Taken 1484 | . 386 312 786 Core 600 | . 86 107 407 Absorbed by Shields . | . . . . Core Remaining (%) 61 | 100 . 22 . Volleys Fired 49 | . 28 17 4 Largest 2 | . 2 2 1 Hottest 108 | . 108 98 40 Shots Fired 81 | . 56 21 4 Gun 34 | . 30 . 4 Cannon 43 | . 26 17 . Launcher 4 | . . 4 . Special . | . . . . Kinetic 26 | . 26 . . Thermal 51 | . 30 17 4 Explosive 4 | . . 4 . Electromagnetic . | . . . . Robot Hit Streak 5 | . 4 5 4 Robot Miss Streak 4 | . 3 4 . Penetration Max . | . . . . Secondary Targets . | . . . . Shots Hit Robots 49 | . 29 12 8 Core Hits 25 | . 16 8 1 Critical Hits 1 | . 1 . . Critical Kills . | . . . . Critical Parts Destroyed 1 | . 1 . . Melee Attacks 14 | . . 10 4 Impact 14 | . . 10 4 Slashing . | . . . . Piercing . | . . . . Sneak Attacks . | . . . . Combat Hostiles . | . . . . Follow-up Attacks . | . . . . Damage Inflicted 943 | . 417 394 132 Guns 151 | . 106 . 45 Cannons 463 | . 311 152 . Explosions 177 | . . 177 . Melee 152 | . . 65 87 Ramming . | . . . . Kinetic 73 | . 73 . . Thermal 541 | . 344 152 45 Explosive 177 | . . 177 . Electromagnetic . | . . . . Impact 152 | . . 65 87 Slashing . | . . . . Piercing . | . . . . Highest Corruption 2 | . 2 2 . Average Corruption 1 | . 1 2 . Corruption Purged . | . . . . Effects 11 | . . 11 . Message Errors 5 | . . 5 . Heat Flow Errors 3 | . . 3 . Energy Discharges 2 | . . 2 . Data Loss (minor) 1 | . . 1 . Overload Shots . | . . . . Overflow Damage 19 | . 1 18 . Projectiles 3 | . 1 2 . Explosions 10 | . . 10 . Melee 6 | . . 6 . Knockbacks . | . . . . Impact . | . . . . Kinetic . | . . . . Secondary . | . . . . Self-Inflicted Damage . | . . . . Shots . | . . . . Rammed . | . . . . Targets Rammed . | . . . . Kicked . | . . . . Crushed . | . . . . Highest Temperature 220 | . 198 220 1 Average Temperature 83 | . 101 63 1 Received Heat Transfer 372 | . 69 24 279 Siege Activations . | . . . . Robots Corrupted . | . . . . Combat Hostiles . | . . . . Parts Fried . | . . . . Impact Corruptions 2 | . . 2 . Robots Melted . | . . . . Combat Hostiles . | . . . . Parts Melted 2 | . 2 . . Heat Transferred 989 | . 630 259 100 Parts Sabotaged . | . . . . Parts Stolen . | . . . . Parts Stripped . | . . . . Power Chain Reactions . | . . . . Missiles Intercepted . | . . . . Alert | -11 -10 -10 -9 ------- Run | Scr Mat Min Mat Peak Influence 222 | . 222 90 19 Initial 19 | . . 4 19 Average 43 | . 81 41 14 Maximum Alert Level 1 | . 1 . . Low Security (%) 99 | 100 96 100 100 Level 1 . | . 3 . . Level 2 . | . . . . Level 3 . | . . . . Level 4 . | . . . . Level 5 . | . . . . High Security . | . . . . Max Security . | . . . . Squads Dispatched 3 | . 2 . 1 Investigation 1 | . . . 1 Extermination . | . . . . Reinforcement 2 | . 2 . . Assault . | . . . . Garrison . | . . . . Intercept . | . . . . Construction Impeded . | . . . . Haulers Reinforced . | . . . . Stealth | -11 -10 -10 -9 --------- Run | Scr Mat Min Mat Distress Signals 5 | . 2 . 3 Communications Jammed . | . . . . Distress Signals . | . . . . Times Spotted 29 | . 13 7 9 Peak Tracking Total 6 | . 5 3 6 Tactical Retreats . | . . . . Traps | -11 -10 -10 -9 ------- Run | Scr Mat Min Mat Traps Triggered 3 | . 2 1 . Indirectly . | . . . . Trap Hack Attempts . | . . . . Triggered . | . . . . Disarmed . | . . . . Reprogrammed . | . . . . Reused . | . . . . Traps Extracted . | . . . . Installed . | . . . . Triggered . | . . . . Machines | -11 -10 -10 -9 ---------- Run | Scr Mat Min Mat Machines Disabled 1 | . 1 . . Max in Single Turn 1 | . 1 . . Machines Sabotaged . | . . . . Garrisons Compromised . | . . . . Overloaded Fab Kills . | . . . . Fab Network Shutdowns . | . . . . Hacking | -11 -10 -10 -9 --------- Run | Scr Mat Min Mat Machines Accessed 3 | . 2 1 . Terminals 1 | . 1 . . Fabricators . | . . . . Repair Stations . | . . . . Recycling Units 1 | . 1 . . Scanalyzers . | . . . . Garrison Access . | . . . . Total Hacks 11 | . 10 1 . Successful 9 | . 8 1 . Failed 2 | . 2 . . Catastrophic . | . . . . Database Lockouts . | . . . . Manual 1 | . . 1 . Terminals 1 | . 1 . . Fabricators . | . . . . Repair Stations . | . . . . Recycling Units 9 | . 9 . . Scanalyzers . | . . . . Garrison Access . | . . . . Terminal Hacks 2 | . 1 1 . Prototype ID Bank 1 | . 1 . . Open Door 1 | . . 1 . Fabricator Hacks . | . . . . Repair Station Hacks . | . . . . Recycling Unit Hacks 7 | . 7 . . Recycle Component 1 | . 1 . . Process 3 | . 3 . . Report Inventory 1 | . 1 . . Retrieve Matter 1 | . 1 . . Retrieve Components 1 | . 1 . . Scanalyzer . | . . . . Garrison Access Hacks . | . . . . Unauthorized Hacks . | . . . . Terminals . | . . . . Fabricators . | . . . . Repair Stations . | . . . . Recycling Units . | . . . . Scanalyzers . | . . . . Garrison Access . | . . . . Data Cores Recovered . | . . . . Used . | . . . . Hacking Detections 1 | . 1 . . Full Trace Events 1 | . 1 . . Feedback Events . | . . . . Feedback Blocked . | . . . . Robot Schematics Acquired . | . . . . Robots Built . | . . . . Matter . | . . . . Time . | . . . . Total Robot Build Rating . | . . . . Part Schematics Acquired . | . . . . Parts Built . | . . . . Matter . | . . . . Time . | . . . . Total Part Build Rating . | . . . . Parts Repaired . | . . . . Time . | . . . . Parts Recycled 1 | . 1 . . Recycled Matter 30 | . 30 . . Retrieved Matter 30 | . 30 . . Retrieved Components . | . . . . Parts Scanalyzed . | . . . . Part Schematics Acquired . | . . . . Parts Damaged . | . . . . Bothacking | -11 -10 -10 -9 ------------ Run | Scr Mat Min Mat Used RIF Installer . | . . . . Robots Hacked . | . . . . Non-combat . | . . . . Combat . | . . . . Robot Hacks Applied . | . . . . Relay Couplers Released . | . . . . Robots Rewired . | . . . . Allies Hacked . | . . . . Hacks Repelled . | . . . . Allies | -11 -10 -10 -9 -------- Run | Scr Mat Min Mat Total Allies . | . . . . Largest Group . | . . . . Highest-Rated Group . | . . . . Highest-Rated Ally . | . . . . Total Orders . | . . . . Ally Attacks . | . . . . Total Damage . | . . . . Kills . | . . . . Allies Corrupted . | . . . . Allies Melted . | . . . . Intel | -11 -10 -10 -9 ------- Run | Scr Mat Min Mat Robot Analysis Total . | . . . . Derelict Logs Recovered 1 | . . 1 . Drone Launches . | . . . . Drone Recoveries . | . . . . Exploration | -11 -10 -10 -9 ------------- Run | Scr Mat Min Mat Turns Passed 1881 | 156 410 1092 223 Spaces Moved 871 | 97 218 489 67 Core 124 | 97 21 . 6 Treads . | . . . . Legs 747 | . 197 489 61 Wheels . | . . . . Hover . | . . . . Flight . | . . . . Fastest Speed 50 | 50 120 180 240 Average Speed 190 | 150 141 204 301 Slowest Speed 700 | 200 200 240 700 Overloaded Moves . | . . . . Propulsion Burnouts . | . . . . Robots Hopped . | . . . . Cave-ins Triggered . | . . . . Exploration Rate (%) 30 | 6 29 77 9 Regions Visited 3 Branch Regions 1 Pre-discovered Areas . | . . . . Known Exits Taken . | . . . . Unknown Exits Taken 3 | 1 1 1 . Scrap Searched 2 | . . 2 . Spaces Dug . | . . . . Terrain Destroyed 21 | . . 21 . Melee . | . . . . Projectile . | . . . . AOE 21 | . . 21 . Terrain Rammed . | . . . . Walls Destroyed . | . . . . Machines Disabled . | . . . . Actions | -11 -10 -10 -9 --------- Run | Scr Mat Min Mat Total 995 | 108 268 541 78 Wait . | . . . . Move 868 | 96 217 488 67 Hop . | . . . . Pick Up 29 | 6 13 9 1 Fast Attach . | . . . . Attach 11 | 6 2 2 1 Detach . | . . . . Swap 13 | . 5 7 1 Drop 11 | . 3 8 . Fire 49 | . 28 17 4 Melee 14 | . . 10 4 Ram . | . . . . Kick . | . . . . Crush . | . . . . Escape Stasis . | . . . . Rewire . | . . . . Trap . | . . . . Miscellaneous . | . . . . Route ------- -11/Scrapyard -10/Materials -10/Mines (discovered 3 exits: [*Mat x2] / [*Exi]) -9/Materials (discovered 1 exit: Min) History --------- Turn | Location | Event 6 | -11/Scrapyard | Discovered new exit (range 15) 157 | -11/Scrapyard | Entered Materials 330 | -10/Materials | Build established: Mutant 464 | -10/Materials | Discovered new exit (range 12) 567 | -10/Materials | Entered Mines 584 | -10/Mines | Deemed a non-threat by the Exiles lab entrance 584 | -10/Mines | Discovered new exit (range 5) 707 | -10/Mines | Learned location of 1 exit from Materials 920 | -10/Mines | Discovered new exit (range 9) 1088 | -10/Mines | Met a Derelict who couldn't figure out how to use a Trap Extractor 1096 | -10/Mines | Core integrity fell below 50% 1644 | -10/Mines | Discovered new exit (range 5) 1659 | -10/Mines | Entered Materials 1659 | -9/Materials | Evolved 2 slots: Power x1, Utility x1 1660 | -9/Materials | Identified exit to Mines 1861 | -9/Materials | Lost 3 parts (1p1n1w) 1864 | -9/Materials | Core integrity fell below 50% 1876 | -9/Materials | Core integrity fell below 20% 1882 | -9/Materials | Destroyed by Y-45 Defender with Beam Rifle Last Messages --------------- 01703_ An alarm sounds. 01703_ ALERT: Alarm triggered, dispatching investigation squad. 01758_ G-34 Mercenary destroyed. 01782_ Acquired 31 matter. 01787_ 2A-1Q0(g) destroyed. 01787_ Acquired Sml. Laser. 01788_ K-01 Serf collects debris. 01789_ W-16 Scout sends out distress signal. 01805_ K-01 Serf collects debris. 01808_ K-01 Serf cleans the Terminal. 01809_ U-05 Engineer lays Concrete. 01811_ K-01 Serf collects debris. 01821_ Ion Engine destroyed. 01827_ Sml. Laser destroyed. 01828_ K-01 Serf collects debris. 01830_ Aluminum Leg destroyed. 01838_ W-16 Scout sends out distress signal. 01848_ Purification Channel disabled. 01872_ Great Maul destroyed. 01881_ K-01 Serf collects debris. Map ----- +----------------------------------------------------+ | ???????????????????????????????????????????? | | ???????????????????????????????????????????? | | ???????????????????????????????????????????? | | ???????????????????????????????????????????? | | ???????????????????????????????????????????? | | ???????????????????????????????????????????? | | ?????????????????????????? ??????????????? | | ?????????????????????????? ??????????????? | | ?????????????????????????? ??????????????? | | ?????????????????????????? #?????????????? | | ?????????????????????????? #?????????????? | | ??????????????????######## #?????????????? | | ??????????????????# T #?????????????? | | ??????????????????# +?????????????? | | ??????????????????# " #?????????????? | | ??????????????????# """ #?????????????? | | ??????????????????# "" #?????????????? | | ??????????????????# """ g#?????????????? | | ??????????????????# k ""[k#?????????????? | | ??????????????????# """g!#?????????????? | | ??????????????????# """=[#?????????????? | | ??????????????????# """ %##????????????? | | ??????????????????# !*%=#????????????? | | ??????????????????# ! Y=#????????????? | | ?????????????? "" # #????????????? | | ?????????????? "" /Y @ #????????????? | | ?????????? k # """ #????????????? | | ???????????[ ??# "" #????????????? | | ??????????????????# "" #????????????? | | ??????????????????# "" #????????????? | | ??????????????????# """ #????????????? | | ??????????????????# """ #????????????? | | ????????????? ????# """ #????????????? | | ??????????? # " #????????????? | | ??????????? + #????????????? | | ????????????????? # #????????????? | | ????????????????? ######## #????????????? | | ????????????????"????????# #????????????? | | ???????????????##????????# #????????????? | | ?????????????????????????# #????????????? | | ?????????????????????????# #????????????? | | ?????????????????????????# #????????????? | | ?????????????????????????# #????????????? | | ?????????????????????????# ####????????????? | | ?????????????????????????# #???????????????? | | ?????????????????????????# #???????????????? | | ?????????????????????????# #???????????????? | | ?????????????????????????# #???????????????? | | ?????????????????????????# #???????????????? | | ?????????????????????????# #???????????????? | +----------------------------------------------------+ Best States ------------- Heat Dissipation 35 Coolant Potential 50 Energy Generation 10 Energy Capacity 250 Matter Stores 387 Matter Capacity 400 Sight Range 16 Terrain Scan Density 10 Evasion (%) 50 Item Schematics ----------------- None Robot Schematics ------------------ None Fabricated ------------ Nothing Alien Tech Used ----------------- None Achievements -------------- None Challenges ------------ None Game ------ Seed CryofiberLaserScanner Manual? 0 Play Time 00:36:36 Cumulative 21.0 hours Start 2021.05.22 @ 10:28:40 End 2021.05.22 @ 11:09:04 Sessions 1 Manual Loads 0 Difficulty Rogue Special Mode None Game No. 4 Rogue 4 Adventurer 0 Explorer 0 Win Type - Total 0 Types 0/0/0/0/0/0/0/0/0 Lore% 0 Gallery% 4 Achievement% 3 Wizard Run 0 Options --------- ASCII 1 Keyboard 0 Movement Mouse Keybinds 0 Fullscreen 2 Font 18/TerminusBold Map View 76x50 Tactical HUD 1 Map Filters NONE Filters NONE Steam 1 RUN: 370cb796-eee2-42a2-90d4-e45289d222a6